[Event "87th Spanish Championship 2022"]
[Site "Linares"]
[Date "2022.08.14"]
[Round "5.26"]
[White "Fernandez Lopez, Ruben"]
[Black "Jimenez Fernandez, Rebeca"]
[Result "1-0"]
[ECO "B54"]
[WhiteElo "2324"]
[BlackElo "1908"]
[Annotator "TA"]
[PlyCount "105"]
[EventDate "2022.08.11"]
[EventType "swiss"]
[EventCountry "ESP"]
[SourceTitle "playchess.com"]
[Source "ChessBase"]
[SourceQuality "1"]
[TimeControl "5400+30"]

{[%evp 11,105,10,34,20,22,22,35,10,58,59,72,72,153,148,146,108,118,116,111,116,108,93,93,76,106,109,102,102,133,133,152,146,203,189,179,185,185,190,194,106,113,108,110,110,114,118,114,113,128,106,108,78,85,81,77,81,83,79,100,96,93,95,175,180,168,176,230,208,211,202,321,306,806,787,746,702,1470,1312,1441,1481,1479,1572,2002,1920,5581,1068,5704,5424,29986,29987,29987,29988,29990,29989,29991,29992]} 1. e4 {[%emt 0:00:03]} c5 {[%emt 0:00:04]} 2. Nf3 {[%emt 0:00:09][%cal Bg1f3,Bf3d4,Bd4b3][%mdl 32]} d6 {[%emt 0:00:04]} 3. d4 {[%emt 0:00:31]} cxd4 {[%emt 0:00:05]} 4. Nxd4 {[%emt 0:00:06]} Nf6 {[%emt 0:00:04]} 5. f3 e5 {[%emt 0:04:17]} 6. Nb3 {[%emt 0:01:34]} d5 {[%emt 0:00:38]} 7. Bg5 $1 {[%emt 0:01:15] B55: Sicilian: 2...d6 3 d4 cxd4 4 Nxd4 Nf6 5 f3.} d4 {[%emt 0:08:40]} 8. c3 {[%emt 0:01:35][%cal Rc3d4]} Nc6 {[%emt 0:05:28]} 9. Bb5 {[%emt 0:01:19] White is slightly better. 9.cxd4 is more fashionable.} Be6 {[%emt 0:02:17]} (9... h6 $11 10. Bxf6 Qxf6) 10. cxd4 $14 {[%emt 0:03:40] Threatens to win with d5.} Bxb3 {[%emt 0:06:29]} 11. Qxb3 {[%emt 0:00:27]} Qxd4 {[%emt 0:00:54]} (11... exd4 $142 12. e5 Qd5) 12. Be3 $16 {[%emt 0:04:06]} Qb4+ {[%emt 0:03:05]} 13. Nc3 {[%emt 0:02:56]} Qxb3 {[%emt 0:02:40]} 14. axb3 {[%emt 0:00:05]} a6 {[%emt 0:01:04] [#]} 15. Bxc6+ $146 {[%emt 0:07:50]} ({Predecessor:} 15. Nd5 Rc8 16. Nb6 Rc7 17. Ba4 Bb4+ 18. Kf2 O-O 19. Rac1 Rd8 20. Rc2 h6 21. Rhc1 {½-½ (97) Paehtz,E (2331)-Kosteniuk,A (2459) Mainz 2002}) 15... bxc6 {[%emt 0:00:16]} 16. Ra4 {[%emt 0:01:54] White is more active.} Be7 {[%emt 0:20:04]} 17. Kd2 {[%emt 0:00:39]} Kd7 {[%emt 0:10:20]} 18. Rha1 {[%emt 0:00:36]} Rhb8 {[%emt 0:01:32]} 19. Kc2 {[%emt 0:00:14]} Rb4 {[%emt 0:01:32]} 20. Rxa6 {[%emt 0:00:07]} Rab8 {[%emt 0:00:09]} 21. Ra7+ {[%emt 0:00:10]} Ke8 {[%emt 0:01:25] [#]} (21... R4b7 $16 {is a better defense.} 22. Na4 Rxa7 23. Nb6+ (23. Bxa7 Rb5 $16) 23... Kc7 24. Rxa7+ Rb7) 22. Rxe7+ $1 $18 {[%emt 0:05:22][%mdl 512]} Kxe7 {[%emt 0:00:14]} 23. Bc5+ {[%emt 0:00:05]} Ke6 {[%emt 0:02:26]} 24. Bxb4 {[%emt 0:00:10]} Rxb4 {[%emt 0:00:05][%mdl 4096] Endgame KRN-KRN} 25. Ra4 {[%emt 0:00:11]} (25. Ra6 $18) 25... Rb7 $16 {[%emt 0:00:48]} 26. b4 {[%emt 0:00:15]} Ne8 {[%emt 0:02:22]} 27. Ra6 {[%emt 0:01:41]} Kd7 {[%emt 0:02:17]} 28. Kb3 {[%emt 0:00:54]} Nc7 {[%emt 0:00:41]} 29. Ra5 {[%emt 0:00:04]} Ke6 {[%emt 0:06:51]} 30. Kc4 {[%emt 0:01:37]} Kd6 {[%emt 0:04:19]} 31. b5 {[%emt 0:05:12]} cxb5+ {[%emt 0:01:13]} 32. Nxb5+ {[%emt 0:00:04]} Nxb5 {[%emt 0:00:07]} 33. Rxb5 {[%emt 0:00:03] KR-KR} Rc7+ {[%emt 0:00:07]} 34. Kb3 {[%emt 0:00:29]} Rc1 {[%emt 0:00:29]} 35. Rd5+ {[%emt 0:00:02]} Ke6 {[%emt 0:00:07]} 36. Rd2 h5 {[%emt 0:01:17]} (36... Rc8 $16 {was called for.}) 37. Ka4 $18 {[%emt 0:00:35]} Ra1+ {[%emt 0:00:49]} 38. Kb5 {[%emt 0:00:04]} h4 {[%emt 0:02:00]} (38... Ra2 $142 39. Kc4 h4) 39. h3 {[%emt 0:00:12]} Ra2 {[%emt 0:01:22] [#]} 40. Kc4 $1 {[%emt 0:00:53]} Kf6 {[%emt 0:00:27]} (40... g6 $142 41. Kc3 f5) 41. Kc3 {[%emt 0:00:13] Black must now prevent b4.} Kg5 $2 {[%emt 0:01:00]} (41... Ra8 42. b4 Rc8+ 43. Kb3 Rb8) 42. b4 {[%emt 0:00:04]} Ra8 {[%emt 0:01:17]} 43. b5 {[%emt 0:00:36]} g6 {[%emt 0:02:46]} 44. b6 {[%emt 0:00:41]} f5 {[%emt 0:00:43]} 45. Kc4 {[%emt 0:00:13]} Kf4 {[%emt 0:00:55]} 46. Re2 {[%emt 0:00:04]} Kg3 {[%emt 0:02:57]} 47. Kd5 {[%emt 0:00:09] And now b7 would win.} Ra6 {[%emt 0:00:24]} 48. Kc5 {[%emt 0:00:12]} (48. Rb2 $142 Ra8 49. b7 Rd8+ 50. Kxe5 fxe4 51. fxe4) 48... Ra1 {[%emt 0:01:05]} 49. Rb2 {[%emt 0:00:03] Threatening mate with b7.} Rg1 {[%emt 0:03:34]} 50. b7 {[%emt 0:00:09] White mates.} Rxg2 {[%emt 0:00:09]} 51. b8=Q {[%emt 0:00:13]} Rxb2 {[%emt 0:00:16]} 52. Qxe5+ {[%emt 0:00:04]} Kxf3 {[%emt 0:00:20]} 53. Qxb2 {[%emt 0:00:08] Weighted Error Value: White=0.07 (flawless) /Black=0.38} 1-0

[Event "87th Spanish Championship 2022"]
[Site "Linares"]
[Date "2022.08.14"]
[Round "5.27"]
[White "Garza Marco, Sergio"]
[Black "Lopez Varela, Pablo"]
[Result "1/2-1/2"]
[ECO "A56"]
[WhiteElo "2408"]
[BlackElo "2158"]
[Annotator "TA"]
[PlyCount "60"]
[EventDate "2022.08.11"]
[EventType "swiss"]
[EventCountry "ESP"]
[SourceTitle "playchess.com"]
[Source "ChessBase"]
[SourceQuality "1"]
[TimeControl "5400+30"]

{[%evp 9,60,79,113,104,114,79,97,86,102,64,58,4,25,18,25,0,0,-55,-63,-64,-60,-68,-62,-73,-68,-74,-68,-64,-70,-78,-80,-113,-112,-185,-189,-162,-50,-43,-39,-51,-21,-58,-18,-18,0,0,0,-6,26,37,57,29,41]} 1. d4 {[%emt 0:00:01]} Nf6 {[%emt 0:00:08]} 2. c4 {[%emt 0:00:04]} c5 {[%emt 0:00:00]} 3. d5 e5 4. Nc3 {[%emt 0:00:18]} d6 {[%emt 0:00:12]} 5. e4 {[%emt 0:00:28]} h5 6. Be2 {[%emt 0:12:40][%cal Bf1e2,Be2d1,Bd1a4][%mdl 32] A56: Czech Benoni.} h4 {[%emt 0:00:54] [#]} 7. Bg5 $146 {[%emt 0:03:58]} ({Predecessor:} 7. Nf3 Nbd7 8. O-O Be7 9. a3 g6 10. Ne1 Nh5 11. Nd3 Kf8 12. b4 b6 13. Rb1 {1-0 (44) Schandorff,L (2537)-Jacobsen,B (2323) Borup 2008}) 7... Be7 {[%cal Of6d5]} 8. Be3 {[%emt 0:06:16] White is better.} Nbd7 {[%emt 0:02:44][%cal Bb8d7,Bd7f8,Bf8g6,Bg6h8][%mdl 32]} 9. Qd2 {[%emt 0:01:07] White is more active.} Nf8 {[%emt 0:00:20]} 10. f3 {[%emt 0:00:15]} (10. h3 $14) 10... Ng6 $11 {[%emt 0:00:14]} 11. Bd1 Nh5 {[%emt 0:13:14]} 12. Ba4+ {[%emt 0:00:53]} Kf8 {[%emt 0:03:47]} ({Don't do} 12... Bd7 13. Bxd7+ Qxd7 14. Nh3 $14) 13. g3 {[%emt 0:01:43] Prevents Nhf4.} ({White should try} 13. Nge2 $11) 13... hxg3 $15 {[%emt 0:00:05]} 14. hxg3 {[%emt 0:00:00]} Nxg3 {[%emt 0:00:20]} 15. Rxh8+ Nxh8 {[%emt 0:00:03]} 16. Qh2 {[%emt 0:00:20][%csl LRg3,LRh8][%cal Rh2h8] [#]} Bh4 17. Bf2 {[%emt 0:00:08]} Qg5 {[%emt 0:00:23]} 18. Nge2 {[%emt 0:00:16]} Nxe2 {[%emt 0:00:16]} 19. Kxe2 {[%emt 0:18:40]} Ng6 {[%emt 0:03:07]} 20. Rg1 {[%emt 0:11:07]} Qf4 {[%emt 0:04:10]} 21. Qh1 {[%emt 0:01:21]} (21. Rh1 $17 {is a better defense.} Bg5 22. Qxf4 Nxf4+ 23. Kd1) 21... Bxf2 $19 {[%emt 0:03:12]} 22. Kxf2 {[%cal Og1g6]} Qh4+ {[%emt 0:00:47]} (22... Ke7 $19 23. Ne2 Qf6) 23. Qxh4 $15 {[%emt 0:03:05]} Nxh4 24. a3 {[%emt 0:11:45]} a6 {[%emt 0:20:21]} 25. Ke3 Ng6 26. Rh1 {[%emt 0:02:32]} Kg8 {[%emt 0:07:54]} 27. Rb1 Bh3 {[%emt 0:08:12]} 28. b4 {[%emt 0:03:31][%cal Bb2b4,Bb4c5,Bc5c6][%mdl 32] And now bxc5 would win.} b5 {[%emt 0:00:12] [#] Threatens to win with ...cxb4.} 29. bxc5 {[%emt 0:13:53]} bxa4 {[%emt 0:00:44]} 30. c6 {[%emt 0:00:04] Black must now prevent c5.} Ne7 {Weighted Error Value: White=0.21 (precise) /Black=0.16 (very precise)} 1/2-1/2

[Event "87th Spanish Championship 2022"]
[Site "Linares"]
[Date "2022.08.14"]
[Round "5.28"]
[White "Rodriguez Lopez, Rafael"]
[Black "Moreno Tejera, Emilio"]
[Result "0-1"]
[ECO "C95"]
[WhiteElo "2172"]
[BlackElo "2420"]
[Annotator "TA"]
[PlyCount "124"]
[EventDate "2022.08.11"]
[EventType "swiss"]
[EventCountry "ESP"]
[SourceTitle "playchess.com"]
[Source "ChessBase"]
[SourceQuality "1"]
[TimeControl "5400+30"]

{[%evp 32,124,23,20,17,17,36,30,10,0,0,0,0,0,0,0,-10,-2,-5,-10,-9,-40,-35,-35,-34,-31,-31,-89,-24,-45,-37,-41,-35,-50,-40,-50,-42,-61,-35,-58,-6,-13,-9,-32,-5,-13,-7,-7,-4,-26,0,-8,-2,-22,0,0,0,-17,0,-8,-8,-16,-12,-13,0,-14,0,0,0,0,0,-38,-34,-42,-20,-53,-42,-109,-104,-118,-81,-115,-116,-116,-53,-139,-102,-247,-226,-242,-244,-235,-231,-2234,-1747]} 1. e4 {[%emt 0:00:02]} e5 {[%emt 0:00:10]} 2. Nf3 {[%emt 0:00:04]} Nc6 {[%emt 0:00:11]} 3. Bb5 {[%emt 0:00:04][%cal Bf1b5,Bb5a4,Ba4b3][%mdl 32]} a6 {[%emt 0:00:10]} 4. Ba4 {[%emt 0:00:03]} Nf6 {[%emt 0:00:10]} 5. O-O {[%emt 0:00:11]} Be7 {[%emt 0:00:07]} 6. Re1 {[%emt 0:00:03]} b5 {[%emt 0:00:20]} 7. Bb3 {[%emt 0:00:03]} d6 {[%emt 0:00:11]} 8. c3 {[%emt 0:00:03]} O-O {[%emt 0:00:12]} 9. h3 {[%emt 0:00:04]} Nb8 {[%emt 0:00:11]} 10. d4 {[%emt 0:00:14]} Nbd7 {[%emt 0:00:10]} 11. Nbd2 {[%emt 0:01:08]} Bb7 {[%emt 0:00:15]} 12. Bc2 {[%emt 0:00:18]} Re8 {[%emt 0:00:21]} 13. Nf1 {[%emt 0:00:10]} Bf8 {[%emt 0:00:26]} 14. Ng3 {[%emt 0:00:04]} g6 {[%emt 0:00:17]} 15. Bg5 {[%emt 0:00:08]} h6 {[%emt 0:00:35]} 16. Bd2 {[%emt 0:00:04]} Bg7 {[%emt 0:00:14]} 17. a4 {[%emt 0:00:36]} Nb6 {[%emt 0:09:39] C95: Closed Ruy Lopez: Breyer Variation with 10 d4.} 18. b3 {[%emt 0:00:20]} bxa4 {[%emt 0:11:33]} 19. bxa4 {[%emt 0:00:05]} (19. Qc1 {looks sharper.} exd4 20. Bxh6 d3 21. Bxg7 Kxg7 22. Bxd3 axb3 23. Nd4) 19... a5 {[%emt 0:01:34] [#] White has an edge.} 20. Bc1 $146 {[%emt 0:03:45]} ({Predecessor:} 20. Bd3 Ba6 21. Bxa6 Rxa6 22. Qb3 Qa8 23. d5 Rb8 24. Qa2 c6 25. c4 Nbd7 26. Be3 {1-0 (80) Ni,H (2691)-Wagner,D (2583) Karlsruhe 2016}) 20... Ba6 {[%emt 0:11:14]} 21. Bb3 {[%emt 0:01:42]} c5 {[%emt 0:19:20]} 22. dxc5 {[%emt 0:08:26]} dxc5 {[%emt 0:00:11]} 23. Qxd8 {[%emt 0:00:15]} Raxd8 {[%emt 0:00:21]} 24. Be3 {[%emt 0:00:24]} Bf8 {[%emt 0:17:36]} 25. Nd2 {[%emt 0:05:00]} Nfd7 {[%emt 0:06:42]} 26. Bd1 {[%emt 0:12:15]} c4 {[%emt 0:01:18]} 27. Be2 {[%emt 0:00:10]} Nc5 {[%emt 0:04:37] Against Nb3} 28. Reb1 {[%emt 0:26:25]} Re6 {[%emt 0:01:48]} (28... Nbxa4 29. Ra3 $14) 29. Ngf1 {[%emt 0:08:17]} ({Better is} 29. Nf3 $15) 29... Rc6 {[%emt 0:00:43] Black is more active.} (29... Nbxa4 $17 30. Bg4 Nxc3 31. Bxe6 Nxb1 32. Bxc4 Nxd2 33. Nxd2 Bxc4 34. Nxc4 f6) 30. Ra2 {[%emt 0:06:44]} Rdc8 {[%emt 0:01:43]} 31. Bd1 {[%emt 0:04:57]} Kg7 {[%emt 0:00:42]} 32. f3 {[%emt 0:00:22]} Rd8 {[%emt 0:00:29]} 33. Bc2 {[%emt 0:01:00]} Nbd7 {[%emt 0:01:22]} 34. Bf2 {[%emt 0:03:23]} Nd3 {[%emt 0:00:49]} 35. Ne3 {[%emt 0:01:59]} Nxf2 {[%emt 0:01:03]} ({Black should try} 35... Nf4 $15 36. Nd5 Ne2+ 37. Kh2 (37. Kf1 Nxc3 38. Nxc3 Bb4 $17) 37... Nf6) 36. Kxf2 $11 {[%emt 0:00:04]} Bc5 {[%emt 0:01:06]} 37. Ke2 {[%emt 0:00:37]} Nb6 {[%emt 0:00:11]} 38. Ndf1 {[%emt 0:01:03]} Rcd6 {[%emt 0:01:05]} 39. Raa1 {[%emt 0:00:51]} h5 {[%emt 0:00:46]} 40. Rd1 {[%emt 0:00:22]} Bc8 {[%emt 0:00:54]} 41. Rxd6 {[%emt 0:00:10]} Rxd6 {[%emt 0:00:10]} 42. Nd2 {[%emt 0:00:33]} Ba6 {[%emt 0:00:41]} (42... Bxe3 $5 43. Kxe3 f5 $15) 43. h4 {[%emt 0:00:37]} Kf8 {[%emt 0:00:44]} 44. Nb1 {[%emt 0:01:41]} Nd7 {[%emt 0:02:15]} 45. Na3 {[%emt 0:00:33]} Rb6 {[%emt 0:02:00] Prevents Nb5.} 46. Nb5 {[%emt 0:00:16]} Bxe3 {[%emt 0:02:05]} 47. Kxe3 {[%emt 0:00:08]} Nc5 {[%emt 0:00:27]} 48. Rb1 {[%emt 0:01:22]} Bxb5 {[%emt 0:02:33]} 49. axb5 {[%emt 0:00:45][%mdl 4096] Endgame KRB-KRN} (49. Rxb5 Rxb5 50. axb5 Ke7) 49... Ke7 {[%emt 0:01:07]} 50. Bd1 {[%emt 0:00:26]} Nb7 {[%emt 0:00:48]} 51. Be2 {[%emt 0:00:33]} Nd6 {[%emt 0:00:13]} 52. Kd2 {[%emt 0:00:13]} Kd7 {[%emt 0:01:01]} 53. Rb2 {[%emt 0:00:48]} Kc7 {[%emt 0:00:17]} 54. Kc2 {[%emt 0:00:28]} (54. Kc1 $15) 54... Rxb5 $17 {[%emt 0:00:45]} ({Much worse is} 54... Nxb5 $6 55. Ra2 $11) 55. Ra2 {[%emt 0:04:41]} Kb6 {[%emt 0:00:17]} 56. Ra4 {[%emt 0:00:04] [#]} Rc5 $1 {[%emt 0:00:34] White must now prevent ...f5.} 57. Ra1 {[%emt 0:00:24]} Kc6 {[%emt 0:00:22]} (57... f5 $17 58. Rb1+ Kc7 59. exf5 Nxf5) 58. Ra4 {[%emt 0:00:37]} (58. g4 $15) 58... f6 {[%emt 0:00:58]} 59. Bf1 {[%emt 0:00:37] Loses the game.} (59. g4 $17 {might work better.}) 59... f5 $19 {[%emt 0:00:27]} 60. exf5 {[%emt 0:00:48]} Kb5 {[%emt 0:00:33]} ({And not} 60... Nxf5 61. Bxc4 Nxh4 62. Bf1 $15) (60... gxf5 61. f4 $17) 61. Ra1 {[%emt 0:00:18]} Nxf5 {[%emt 0:00:18]} ({Worse is} 61... gxf5 62. Rd1 Ne8 63. g3 $17) 62. Rd1 $2 {[%emt 0:01:28] [#]} (62. Rb1+ Kc6 63. Ra1) 62... Ne3+ {[%emt 0:00:13] Weighted Error Value: White=0.30/Black=0.12 (very precise)} 0-1

[Event "87th Spanish Championship 2022"]
[Site "Linares"]
[Date "2022.08.14"]
[Round "5.29"]
[White "Suarez Uriel, Adrian"]
[Black "Serrano Almendros, Alejandro"]
[Result "0-1"]
[ECO "A14"]
[WhiteElo "2386"]
[BlackElo "2177"]
[Annotator "TA"]
[PlyCount "96"]
[EventDate "2022.08.11"]
[EventType "swiss"]
[EventCountry "ESP"]
[SourceTitle "playchess.com"]
[Source "ChessBase"]
[SourceQuality "1"]
[TimeControl "5400+30"]

{[%evp 13,96,-7,12,-28,0,-12,0,-19,-6,-37,0,0,0,0,23,18,17,18,2,-56,31,18,34,-39,-35,-69,-65,-56,0,0,0,-73,-50,-78,-74,-248,-239,-256,-242,-404,-396,-425,-421,-595,-606,-604,-543,-606,-515,-502,0,-560,0,0,0,-576,0,0,0,-565,-552,-544,-493,-418,-535,-529,-506,-711,-732,-813,-749,-1196,-897,-877,-872,-867,-865,-851,-778,-29981,-1080,-6716,-1238,-29992,-664]} 1. Nf3 Nf6 {[%emt 0:01:03]} 2. c4 {[%emt 0:04:07]} e6 {[%emt 0:00:24]} 3. g3 {[%emt 0:00:00]} d5 {[%emt 0:01:23]} 4. Bg2 Be7 {[%emt 0:00:05]} 5. O-O {[%emt 0:00:25]} O-O {[%emt 0:06:32]} 6. b3 {[%emt 0:00:27]} c5 {[%emt 0:01:59]} 7. e3 {[%emt 0:01:24]} Nc6 {[%emt 0:11:11]} 8. Na3 {[%emt 0:10:50] [#] A14: English Opening: 1...e6 with b3 by White.} Qa5 $146 {[%emt 0:00:26]} ({Predecessor:} 8... b6 9. Bb2 Bb7 10. Qe2 Qc7 11. Rac1 Rad8 12. d4 dxc4 13. dxc5 cxb3 14. cxb6 Qxb6 15. Nc4 Ba6 16. axb3 Qxb3 {½-½ (42) Wohl,A (2255)-West,G (2330) Melbourne 1990}) 9. d3 {[%emt 0:00:10]} Rd8 {[%emt 0:02:29]} 10. Qe2 {[%emt 0:09:11] The position is equal.} a6 {[%emt 0:06:38]} 11. Nc2 {[%emt 0:02:42]} e5 {[%emt 0:00:17]} 12. cxd5 {[%emt 0:00:07]} Nxd5 {[%emt 0:02:10]} 13. Bb2 {[%emt 0:05:25]} Bf6 {[%emt 0:13:32]} 14. Nd2 {[%emt 0:05:35]} Be6 {[%emt 0:01:24]} 15. Ne4 Be7 16. g4 {[%emt 0:01:24]} (16. f4 $11) 16... Rd7 {[%emt 0:03:17]} ({Better is} 16... Qc7 $15) 17. f4 $1 $14 {[%emt 0:11:16]} f6 {[%emt 0:05:28]} 18. f5 {[%emt 0:03:40]} (18. fxe5 $14 Nxe5 19. Bxe5 fxe5 20. g5) 18... Bf7 $15 {[%emt 0:00:03]} 19. h4 {[%emt 0:00:24]} Rad8 {[%emt 0:03:00]} 20. g5 {[%emt 0:04:13][%cal Og5g6]} Ndb4 {[%emt 0:00:11]} (20... Qb6 $15) 21. Nxb4 $11 {[%emt 0:07:39]} Nxb4 {[%emt 0:01:16]} 22. Qg4 {[%emt 0:00:44]} (22. g6 $11 {keeps the balance.} Be8 23. Bxe5) 22... Kh8 {[%emt 0:02:00] White must now prevent ...Nc2.} 23. Rf3 {[%emt 0:03:24]} Bd5 {[%emt 0:06:01] aiming for ...Bxe4.} 24. Rg3 $2 {[%emt 0:03:17]} (24. Bc3 $17) 24... Bxe4 $19 {[%emt 0:01:36]} 25. Bxe4 {[%emt 0:05:00]} Nxd3 {[%emt 0:00:27]} 26. Bxd3 {[%emt 0:00:14]} (26. Rg2 {was worth a try.}) 26... Rxd3 {[%emt 0:00:05]} 27. h5 {[%emt 0:07:46]} Qd2 {[%emt 0:12:35]} 28. h6 {[%emt 0:00:03]} (28. Rg2 {keeps fighting.} Qxe3+ 29. Kh2) 28... Qxb2 {[%emt 0:00:21]} 29. hxg7+ {[%emt 0:00:30]} Kg8 {[%emt 0:00:14]} 30. Qc4+ {[%emt 0:00:00]} R8d5 {[%emt 0:00:25]} 31. Rf1 {[%emt 0:03:42] g6 is the strong threat.} Qe2 $2 {[%emt 0:17:38]} ({Not} 31... b5 32. Qg4 Rd8 33. Rh3 Rxe3 34. Rxe3 $11) ({Black should try} 31... e4 $19 32. gxf6 Bxf6 33. Qxe4 Qe5 34. Qxe5 Rxe5) 32. Qa4 $2 {[%mdl 8192]} (32. g6 $1 $11 Qh5 33. Qa4) 32... Rd8 {[%emt 0:00:01]} 33. Qc4+ {[%emt 0:02:17]} R8d5 {[%emt 0:00:30]} 34. Qa4 {[%emt 0:00:56] White wants to mate with Qe8+.} Rd7 35. Qc4+ {[%emt 0:00:01]} R7d5 {[%emt 0:00:49]} 36. Qa4 {[%emt 0:00:49] White threatens Qe8+ and mate.} Qh5 {[%emt 0:01:51] Inhibits Qe8+.} 37. g6 {[%emt 0:00:35]} Rd8 {[%emt 0:00:33]} (37... Kxg7 {is a self mate.} 38. Qe8 hxg6 39. fxg6 Qh8 40. Qxe7+ Kh6 41. g7 Qc8 42. Rxf6+ Kh5 43. Rh6+ $3 {[%mdl 512]} Kxh6 44. Qh4#) 38. Qc4+ {[#]} R3d5 $1 {[%emt 0:00:06]} ({Wrong is} 38... R8d5 $2 39. Qa4 Rd8 40. Qc4+ R3d5 41. gxh7+ Qxh7 42. a4) 39. gxh7+ {[%emt 0:04:49]} Qxh7 {[%emt 0:00:18] Threatens to win with ...b5.} 40. Qg4 {[%emt 0:02:35]} Rd2 {[%emt 0:00:30][%csl Gd2][%cal Rh7h2]} 41. Qc4+ {[%emt 0:00:15]} R8d5 {[%csl Gd2][%cal Rh7h2]} 42. Rf2 {[%emt 0:00:01] Prevents Qh2+.} Rd1+ {[%emt 0:00:55]} 43. Rf1 {[%emt 0:00:11]} Rxf1+ {[%emt 0:00:46]} 44. Qxf1 {[%emt 0:00:32]} Qh5 {[%emt 0:00:33] And now ...Rd1 would win.} 45. Qc4 {[%emt 0:01:47]} Qd1+ {[%emt 0:00:05]} 46. Kh2 {[%emt 0:00:08]} b5 {[%emt 0:00:33]} (46... e4 $142 47. Kg2 Bd6 48. b4 Bxg3 49. Kxg3 Qg1+ 50. Kh4 Qg5+ 51. Kh3 Qxe3+ 52. Kh2 Qf2+ 53. Kh1 Qf3+ 54. Kh2 e3 55. Kg1 Kxg7 56. Qxd5 Qxd5 57. bxc5 Qxa2 58. Kh1 Qf2 59. c6 e2 60. cxb7 e1=Q#) 47. Qe4 {[%emt 0:01:08]} Rd2+ {[%emt 0:00:09]} 48. Kh3 Qh5+ {Weighted Error Value: White=0.50/Black=0.60} 0-1